bitfinex/quotes_BTCUSD_20251231
["timestamp","ask_amount","ask_price","bid_price","bid_amount"]
[1767145863056,0.14816,88705.0,88693.0,0.01128118]
[1767145863253,0.01162746,88710.0,88700.0,0.01127395]
[1767145863254,0.00035478,88710.0,88700.0,0.01127395]
[1767145863495,0.00035478,88710.0,88704.0,0.14759]
[1767145863496,0.00015378,88710.0,88704.0,0.14759]
[1767145864266,0.00026054,88710.0,88704.0,0.14759]
[1767145864416,0.00026054,88710.0,88707.0,0.14759]
[1767145865699,0.00026054,88710.0,88705.0,0.01127332]
[1767145866175,0.00026054,88710.0,88702.0,0.1588637]
[1767145866728,0.00026054,88710.0,88702.0,0.14759]
[1767145867720,0.00026054,88710.0,88702.0,0.1588637]
[1767145867930,0.00026054,88710.0,88703.0,0.01127357]
[1767145868546,0.00026054,88710.0,88702.0,0.1588637]
[1767145868895,0.00026054,88710.0,88701.0,0.06764257]
[1767145868896,0.000549,88702.0,88698.0,0.15886421]
[1767145869118,0.00026054,88710.0,88701.0,0.20395867]
[1767145869324,0.00026054,88710.0,88704.0,0.01127344]
[1767145869466,0.00026054,88710.0,88701.0,0.15886383]
[1767145870604,0.00026054,88710.0,88701.0,0.14759]
[1767145872304,0.00026054,88710.0,88701.0,0.147041]
[1767145873483,0.00026054,88710.0,88700.0,0.41229234]
[1767145874026,0.00026054,88710.0,88700.0,0.42356629]
[1767145874436,0.14097054,88710.0,88700.0,0.41229234]
[1767145874848,0.00026054,88710.0,88707.0,0.01127306]
[1767145875045,0.0001131,88717.0,88710.0,0.00028846]
[1767145875252,0.0001131,88717.0,88710.0,5.193e-05]
[1767145877349,0.0001131,88717.0,88710.0,0.01132461]
[1767145877551,0.01132,88730.0,88714.0,0.05636067]
[1767145877755,0.0002,88727.0,88720.0,0.41229234]
[1767145877960,0.0002,88727.0,88717.0,0.41229234]
[1767145878590,0.0002,88727.0,88717.0,0.42356413]
[1767145879505,0.0002,88727.0,88720.0,0.01127141]
[1767145879644,2.4e-05,88727.0,88721.0,0.01127128]
[1767145880422,2.4e-05,88727.0,88724.0,0.1531409]
[1767145880812,2.4e-05,88727.0,88724.0,0.14187]
[1767145880964,2.4e-05,88727.0,88721.0,0.01127128]
[1767145881378,2.4e-05,88727.0,88722.0,0.01127116]
[1767145881576,2.4e-05,88727.0,88721.0,0.01127128]
[1767145882213,2.4e-05,88727.0,88722.0,0.01127116]
[1767145883114,2.4e-05,88727.0,88723.0,0.01127103]
[1767145883731,2.4e-05,88727.0,88724.0,0.0112709]
[1767145883982,2.4e-05,88727.0,88723.0,0.01127103]
[1767145884216,2.4e-05,88727.0,88724.0,0.0112709]
[1767145884502,2.4e-05,88727.0,88723.0,0.01127103]
[1767145885263,2.4e-05,88727.0,88724.0,0.0112709]
[1767145885471,0.15306146,88744.0,88728.0,0.01127039]
[1767145885669,0.15296,88743.0,88730.0,0.41229234]
[1767145886080,0.0002,88740.0,88730.0,0.41229234]
[1767145887257,0.0002,88740.0,88727.0,0.14187]
[1767145887468,0.00055,88727.0,88724.0,0.0112709]
[1767145887667,0.14168,88738.0,88723.0,0.01127103]
[1767145887911,0.14168,88738.0,88724.0,0.0112709]
[1767145888323,0.14168,88738.0,88725.0,0.02255078]
[1767145888557,0.14168,88738.0,88725.0,0.01128]
[1767145888847,0.14168,88738.0,88725.0,0.02255078]
[1767145889056,0.14168,88738.0,88725.0,0.01128]
[1767145890957,0.15294912,88738.0,88725.0,0.01128]
[1767145891156,0.01146887,88740.0,88725.0,0.01128]
[1767145891157,0.14168,88737.0,88725.0,0.01128]
[1767145894121,0.14168,88737.0,88725.0,0.01073]
[1767145894332,0.14168,88736.0,88725.0,0.01073]
[1767145894711,0.15296,88736.0,88725.0,0.01073]
[1767145900292,0.15296,88736.0,88721.0,0.0001131]
[1767145900293,0.03036825,88767.0,88741.0,0.01126874]
[1767145900510,0.01128,88768.0,88750.0,0.18250091]
[1767145900511,1e-08,88751.0,88750.0,0.18250091]
[1767145900717,1e-08,88751.0,88745.0,0.15313824]
[1767145901024,1e-08,88751.0,88749.0,0.19820866]
[1767145901206,1e-08,88751.0,88750.0,0.14187]
[1767145901651,1e-08,88751.0,88750.0,0.14192193]
[1767145903266,1e-08,88754.0,88752.0,0.14187]
[1767145903477,0.0113931,88765.0,88755.0,0.15313697]
[1767145903700,1e-07,88758.0,88755.0,0.15313697]
[1767145903873,1e-07,88758.0,88755.0,0.14187]
[1767145904073,1e-07,88758.0,88755.0,0.15313697]
[1767145904477,1e-07,88758.0,88755.0,0.20947176]
[1767145904683,1e-07,88758.0,88756.0,0.14187]
[1767145904921,1e-07,88758.0,88757.0,0.05633358]
[1767145905550,1e-07,88758.0,88756.0,0.14187]
[1767145909937,0.15294455,88774.0,88755.0,0.06760145]
[1767145909938,0.0001131,88785.0,88770.0,0.14541]
[1767145910296,0.0001131,88785.0,88774.0,0.01126455]
[1767145910509,0.13562,88784.0,88769.0,0.01128]
[1767145910720,0.0001131,88785.0,88767.0,0.01126544]
[1767145910721,0.13562,88779.0,88767.0,0.01126544]
[1767145910946,0.13562,88779.0,88769.0,0.01128]
[1767145911550,0.13562,88779.0,88769.0,0.02254519]
[1767145911700,0.13562,88784.0,88769.0,0.02254519]
[1767145911883,0.13562,88784.0,88770.0,0.01126506]
[1767145912484,0.13562,88784.0,88769.0,0.01128]
[1767145912684,0.13562,88784.0,88769.0,0.02254519]
[1767145913272,0.13562,88784.0,88770.0,0.01126506]
[1767145913712,0.13562,88784.0,88769.0,0.02254519]
[1767145914128,0.13562,88784.0,88770.0,0.01126506]
[1767145914626,0.13562,88784.0,88769.0,0.02254519]
[1767145915066,0.0113931,88785.0,88767.0,0.01128]
[1767145915067,0.000113,88769.0,88767.0,0.01128]
[1767145915292,0.13562,88769.0,88761.0,0.0001131]
[1767145915937,0.13562,88769.0,88755.0,0.05644742]
[1767145915938,0.000113,88761.0,88752.0,0.01128]
[1767145916103,0.000113,88761.0,88752.0,0.06761669]
[1767145916321,0.000113,88761.0,88754.0,0.01126709]
[1767145916661,0.0002,88765.0,88755.0,0.01126697]
[1767145916978,0.0002,88765.0,88754.0,0.01126709]
[1767145917332,0.0002,88765.0,88755.0,0.01126697]
[1767145918490,0.0002,88765.0,88754.0,0.01126709]
[1767145918969,0.0002,88765.0,88755.0,0.01126697]
[1767145919173,0.0002,88765.0,88756.0,0.01126684]
[1767145920296,0.0002,88765.0,88754.0,0.01126709]
[1767145920491,0.0002,88765.0,88752.0,0.02254735]
[1767145920707,0.0002,88765.0,88748.0,0.0001131]
[1767145920708,0.14642,88762.0,88748.0,0.0001131]
[1767145920910,0.15779254,88762.0,88748.0,0.0001131]
[1767145921121,0.14642,88747.0,88741.0,0.0001131]
[1767145921705,0.14642,88752.0,88743.0,0.06761055]
[1767145921926,0.01128,88754.0,88743.0,0.01126849]
[1767145922380,0.01128,88754.0,88744.0,0.01126836]
[1767145922566,0.01128,88754.0,88745.0,0.15937824]
[1767145922781,0.010841,88754.0,88746.0,0.01126811]
[1767145923378,0.010841,88754.0,88747.0,0.01126798]
[1767145923777,0.00010646,88762.0,88748.0,0.01126785]
[1767145923981,0.00010646,88762.0,88747.0,0.01126798]
[1767145923982,0.00010646,88762.0,88750.0,0.14791]
[1767145924214,0.14652646,88762.0,88745.0,0.14811]
[1767145924469,0.15779254,88762.0,88745.0,0.15937824]
[1767145924678,0.1576862,88761.0,88745.0,0.14811]
[1767145925674,0.01126633,88760.0,88745.0,0.14811]
[1767145926253,0.22529817,88760.0,88745.0,0.14811]
[1767145926424,0.000349,88745.0,88741.0,0.0001131]
[1767145926851,0.14642,88752.0,88741.0,0.0001131]
[1767145927227,0.145748,88752.0,88741.0,0.0001131]
[1767145930097,0.0112676,88750.0,88741.0,1e-07]
[1767145930301,0.15768773,88749.0,88741.0,1e-07]
[1767145930712,0.15768798,88747.0,88741.0,1e-07]
[1767145931073,0.14642,88747.0,88741.0,1e-07]
[1767145932679,0.01128,88753.0,88741.0,1e-07]
[1767145933513,0.01126735,88752.0,88741.0,1e-07]
[1767145933711,0.14642,88752.0,88741.0,1e-07]
[1767145933920,0.15768735,88752.0,88741.0,1e-07]
[1767145934728,0.01126747,88751.0,88741.0,1e-07]
[1767145934925,0.15768735,88752.0,88741.0,1e-07]
[1767145935673,0.15768747,88751.0,88741.0,1e-07]
[1767145935878,0.1576876,88750.0,88741.0,1e-07]
[1767145936993,0.01126773,88749.0,88741.0,1e-07]
[1767145937669,0.1576876,88750.0,88741.0,1e-07]
[1767145938638,0.13996,88742.0,88741.0,1e-07]
[1767145938861,0.15122938,88736.0,88720.0,0.14852]
[1767145939152,0.4122336,88744.0,88720.0,0.0002]
[1767145939153,0.000113,88727.0,88720.0,0.0002]
[1767145939821,0.01128,88733.0,88722.0,0.14832]
[1767145940333,0.0113864,88733.0,88722.0,0.14832]
[1767145942822,0.0107114,88733.0,88722.0,0.14832]
[1767145944167,0.0001064,88733.0,88722.0,0.14832]
[1767145949345,0.0001064,88733.0,88721.0,0.0001131]
[1767145949346,0.05645524,88733.0,88721.0,0.0001131]
[1767145949492,0.21896537,88733.0,88721.0,0.0001131]
[1767145949713,0.01127052,88727.0,88721.0,0.0001131]
[1767145949911,0.15123027,88729.0,88721.0,0.0001131]
[1767145949912,0.13996,88728.0,88721.0,0.0001131]
[1767145950357,0.01127065,88726.0,88721.0,1e-07]
[1767145950528,0.01127052,88727.0,88721.0,1e-07]
[1767145950978,0.13996,88725.0,88721.0,1e-07]
[1767145952147,0.0113864,88733.0,88725.0,0.000426]
[1767145952347,0.0112709,88724.0,88721.0,1e-07]
[1767145952568,0.1512309,88724.0,88721.0,1e-07]
[1767145952779,0.1512309,88724.0,88720.0,0.0002]
[1767145952780,0.15123103,88723.0,88720.0,1e-07]
[1767145953029,0.15123103,88723.0,88700.0,0.0001131]
[1767145953030,0.19632915,88701.0,88700.0,0.0001131]
[1767145953207,0.19632915,88701.0,88700.0,1e-07]
[1767145953430,0.19632915,88701.0,88688.0,0.01168]
[1767145953431,0.19633042,88699.0,88688.0,0.01168]
[1767145953653,0.13996,88697.0,88688.0,0.0004]
[1767145953787,0.13996,88697.0,88682.0,0.14832]
[1767145953788,0.13996,88697.0,88683.0,0.04061182]
[1767145953989,0.13996,88697.0,88684.0,0.01127599]
[1767145954190,0.14006632,88697.0,88684.0,0.01127599]
[1767145954390,0.00010632,88697.0,88686.0,0.01127573]
[1767145954607,0.0114331,88704.0,88691.0,0.14832]
[1767145954804,0.0114331,88704.0,88691.0,0.14867478]
[1767145955177,0.0114331,88704.0,88691.0,0.15994988]
[1767145955376,0.0114331,88704.0,88692.0,0.14832]
[1767145959608,0.0114331,88704.0,88693.0,0.01127484]
[1767145959913,0.0110001,88704.0,88694.0,0.0002]
[1767145962515,0.01132,88703.0,88694.0,0.0002]
[1767145962959,0.01127294,88708.0,88694.0,0.0002]
[1767145962960,0.0001131,88710.0,88695.0,0.15959459]
[1767145963148,0.01132,88705.0,88695.0,0.15959459]
[1767145963385,0.01132,88705.0,88695.0,0.14832]
[1767145963562,0.0001131,88710.0,88701.0,0.01127383]
[1767145963793,3.1e-06,88710.0,88702.0,0.14832]
[1767145965202,3.1e-06,88710.0,88706.0,0.14832]
[1767145965370,0.13996,88700.0,88687.0,0.0001131]
[1767145965584,0.15123421,88698.0,88687.0,0.0001131]
[1767145966212,0.15123421,88698.0,88691.0,0.00046478]
[1767145966449,0.13996,88698.0,88691.0,0.00046478]
[1767145967018,0.15123421,88698.0,88691.0,0.00046478]
[1767145967218,0.13996,88698.0,88691.0,0.00046478]
[1767145968628,0.15123421,88698.0,88691.0,0.00046478]
[1767145968806,0.15067446,88696.0,88691.0,7.8e-07]
[1767145969162,0.1394,88696.0,88691.0,7.8e-07]
[1767145969972,0.01127459,88695.0,88691.0,7.8e-07]
[1767145970144,0.1394,88694.0,88691.0,7.8e-07]
[1767145970879,0.01127522,88690.0,88680.0,0.0005131]
[1767145971080,0.00035519,88690.0,88680.0,0.0005131]
[1767145971310,0.41285213,88690.0,88680.0,0.0005131]
[1767145971891,0.00035519,88690.0,88680.0,0.0005131]
[1767145979698,0.1394,88689.0,88680.0,0.0005131]
[1767145983688,0.15067535,88689.0,88680.0,0.0005131]
[1767145984066,0.1394,88689.0,88680.0,0.0005131]
[1767145984444,0.15067535,88689.0,88680.0,0.0005131]
[1767145984870,8.5e-05,88680.0,88673.0,0.0005131]
[1767145985085,8.5e-05,88680.0,88673.0,3.1e-06]
[1767145985086,0.14202,88674.0,88673.0,3.1e-06]
[1767145985421,0.14202,88674.0,88672.0,3.1e-06]
[1767145985422,0.19840676,88674.0,88672.0,3.1e-06]
[1767145985621,0.14202,88673.0,88672.0,3.1e-06]
[1767145986452,0.14202,88673.0,88668.0,0.0004]
[1767145986453,0.14202,88670.0,88666.0,1e-08]
[1767145986668,0.01132,88674.0,88666.0,1e-08]
[1767145986879,0.01132,88676.0,88671.0,0.13705]
[1767145987081,0.01132,88675.0,88666.0,1e-08]
[1767145987283,0.01132,88674.0,88666.0,0.13705001]
[1767145987496,0.01132,88677.0,88666.0,0.13705001]
[1767145987696,0.0112756,88687.0,88677.0,0.00055]
[1767145987900,0.01127535,88689.0,88677.0,0.00055]
[1767145987901,0.01127548,88688.0,88677.0,0.00055]
[1767145988050,0.01132,88686.0,88677.0,0.00055]
[1767145988247,0.01132,88686.0,88672.0,0.14832751]
[1767145988454,0.01143309,88686.0,88672.0,0.14832751]
[1767145989166,0.01143309,88686.0,88672.0,0.13705]
[1767145989782,0.02270882,88686.0,88672.0,0.13705]
[1767145990563,0.01143309,88686.0,88672.0,0.13705]
[1767145990775,0.14202,88685.0,88670.0,0.41249694]
[1767145991177,0.14202,88685.0,88671.0,0.01127764]
[1767145991431,0.14213309,88685.0,88670.0,0.42377471]
[1767145992175,0.14213309,88685.0,88671.0,0.01127764]
[1767145992793,0.00046829,88690.0,88685.0,0.00043691]
[1767145993017,0.00046829,88690.0,88685.0,0.13748691]
[1767145993350,0.00046829,88690.0,88678.0,0.13705]
[1767145993551,0.00046829,88690.0,88680.0,0.56082343]
[1767145993788,0.00046829,88690.0,88680.0,0.54954694]
[1767145994009,0.01132,88694.0,88691.0,0.13705]
[1767145994150,3.1e-06,88697.0,88691.0,0.13705]
[1767145995211,3.1e-06,88697.0,88693.0,0.13705]
[1767145995378,0.0001131,88710.0,88700.0,0.13705]
[1767145995586,0.0001131,88710.0,88700.0,0.13715632]
[1767145996575,0.0001131,88710.0,88701.0,0.13782]
[1767145996807,0.01138578,88710.0,88701.0,0.13782]
[1767145997012,0.0001131,88710.0,88700.0,0.41260326]
[1767145997213,0.01138578,88710.0,88700.0,0.41260326]
[1767145998015,0.0001131,88710.0,88700.0,0.41260326]
[1767145998590,0.01138578,88710.0,88700.0,0.41260326]
[1767145999179,0.0001131,88710.0,88700.0,0.41260326]
[1767145999385,0.0001131,88710.0,88700.0,0.42387721]
[1767145999592,1e-07,88710.0,88701.0,0.13782]
[1767146000049,1e-07,88710.0,88702.0,0.0112737]
[1767146000253,0.01132,88712.0,88708.0,0.13782]
[1767146000462,0.0002,88714.0,88712.0,0.000324]
[1767146000670,0.0002,88714.0,88704.0,0.01127344]
[1767146000870,0.0002,88714.0,88703.0,0.14909357]
[1767146003278,0.0002,88714.0,88703.0,0.13782]
[1767146004942,0.0002,88714.0,88706.0,0.13782]
[1767146005143,0.0001131,88717.0,88708.0,0.13782]
[1767146005552,0.0001131,88717.0,88707.0,0.01127306]
[1767146005987,0.0001131,88717.0,88706.0,0.42377013]
[1767146006399,0.0001131,88717.0,88707.0,0.01127306]
[1767146007030,0.0001131,88717.0,88708.0,0.01127294]
[1767146007806,0.0001131,88717.0,88707.0,0.01127306]
[1767146008201,0.0001131,88717.0,88708.0,0.01127294]
[1767146008744,0.0001131,88717.0,88707.0,0.01127306]
[1767146008905,0.0001131,88717.0,88708.0,0.01127294]
[1767146009105,0.0001131,88717.0,88706.0,0.42377013]
[1767146009611,0.0001131,88717.0,88706.0,0.41249694]
[1767146012362,0.0001131,88717.0,88707.0,0.41249694]
[1767146015787,0.0001131,88717.0,88705.0,0.01127332]
[1767146015983,0.0001131,88717.0,88707.0,0.41249694]
[1767146017757,0.0001131,88717.0,88705.0,0.14909332]
[1767146017956,0.0001131,88717.0,88707.0,0.41249694]
[1767146018582,0.0001131,88717.0,88706.0,0.01127319]
[1767146018798,0.0001131,88717.0,88705.0,0.14909332]
[1767146024977,0.0001131,88717.0,88705.0,0.13782]
[1767146025776,0.0001131,88717.0,88705.0,0.14909332]
[1767146027333,0.0001131,88717.0,88705.0,0.13782]
[1767146029671,0.01138489,88717.0,88705.0,0.13782]
[1767146030442,0.01138489,88717.0,88704.0,0.0002]
[1767146033736,0.01127192,88716.0,88704.0,0.0002]
[1767146034427,0.01138489,88717.0,88704.0,0.0002]
[1767146034800,0.01127192,88716.0,88704.0,0.0002]
[1767146038990,0.0001131,88717.0,88704.0,0.0002]
[1767146041323,0.01138489,88717.0,88704.0,0.0002]
[1767146041539,0.01127205,88715.0,88704.0,0.0002]
[1767146041747,0.06774396,88717.0,88694.0,0.1403]
[1767146041748,0.15453255,88711.0,88694.0,0.1403]
[1767146041884,0.15453255,88711.0,88695.0,0.01132]
[1767146041885,0.15453294,88708.0,88695.0,0.01132]
[1767146042095,0.14326,88707.0,88695.0,0.01132]
[1767146042296,0.15453306,88707.0,88695.0,0.01132]
[1767146042520,0.14326,88707.0,88695.0,0.01132]
[1767146049572,0.14326,88707.0,88695.0,0.02259459]
[1767146050004,0.14326,88707.0,88696.0,0.01127446]
[1767146050157,0.14326,88707.0,88695.0,0.02259459]
[1767146050353,0.14326,88707.0,88696.0,0.01127446]
[1767146050589,0.14326,88707.0,88695.0,0.02259459]
[1767146051105,0.14326,88707.0,88696.0,0.01127446]
[1767146051895,0.14326,88707.0,88695.0,0.02259459]
[1767146052373,0.14326,88707.0,88695.0,0.01132]
[1767146052799,0.14326,88707.0,88695.0,0.02259459]
[1767146053852,0.14326,88707.0,88695.0,0.01132]
[1767146054228,0.14326,88707.0,88695.0,0.02259459]
[1767146054577,0.14326,88707.0,88695.0,0.01132]
[1767146054716,0.14326,88707.0,88695.0,0.02259459]
[1767146055322,0.14326,88707.0,88695.0,0.01132]
[1767146055521,0.14326,88707.0,88696.0,0.01132]
[1767146057820,0.00010654,88711.0,88696.0,0.01132]
[1767146058138,0.13897654,88711.0,88696.0,0.01132]
[1767146058793,0.13897654,88711.0,88696.0,0.02259446]
[1767146059800,0.13897654,88711.0,88697.0,0.01127433]
[1767146060549,0.13897654,88711.0,88699.0,0.01127408]
[1767146061274,0.13897654,88711.0,88697.0,0.01127433]
[1767146061475,0.13897654,88711.0,88696.0,0.01132]
[1767146061871,0.15024909,88711.0,88696.0,0.01132]
[1767146062067,0.01127281,88709.0,88696.0,0.01132]
[1767146062295,0.15014281,88709.0,88696.0,0.01132]
[1767146062698,0.15014281,88709.0,88690.0,0.46873079]
[1767146062699,0.13887,88692.0,88681.0,0.01132]
[1767146062895,0.13887,88688.0,88681.0,0.01132]
[1767146063160,0.15014548,88688.0,88681.0,0.01077]
[1767146063296,0.13887,88688.0,88681.0,0.01077]
[1767146064781,0.01132,88696.0,88688.0,0.000324]
[1767146064985,0.01132,88696.0,88683.0,0.13611]
[1767146065114,0.01132,88695.0,88683.0,0.13611]
[1767146065315,0.01127421,88698.0,88683.0,0.13611]
[1767146065535,0.01132,88697.0,88683.0,0.13611]
[1767146065756,0.01132,88696.0,88683.0,0.13611]
[1767146066870,0.01132,88695.0,88683.0,0.13611]
[1767146067431,0.01127446,88696.0,88683.0,0.13611]
[1767146067753,0.01132,88695.0,88683.0,0.13611]
[1767146068520,0.02259459,88695.0,88683.0,0.13611]
[1767146068958,0.01132,88695.0,88681.0,0.01072622]
[1767146069337,0.02259459,88695.0,88681.0,0.01072622]
[1767146069701,0.01127484,88693.0,88681.0,0.01072622]
[1767146069856,0.01127471,88694.0,88681.0,0.01072622]
[1767146071353,0.02259459,88695.0,88681.0,0.01072622]
[1767146072513,0.01132,88695.0,88681.0,0.01072622]
[1767146073694,0.0112737,88702.0,88681.0,0.01072622]
[1767146073695,0.01132,88694.0,88681.0,0.01072622]
[1767146074257,0.01132,88694.0,88681.0,0.02200259]
[1767146074393,0.01132,88694.0,88681.0,0.01072622]
[1767146074585,0.01132,88694.0,88681.0,0.02200259]
[1767146074784,0.01132,88694.0,88682.0,0.05638122]
[1767146075032,0.01132,88694.0,88682.0,0.13611]
[1767146076987,0.01132,88694.0,88680.0,0.01158959]
[1767146076988,0.000225,88682.0,88680.0,0.0003131]
[1767146077638,0.01127522,88690.0,88680.0,0.0003131]
[1767146077639,0.13887,88687.0,88680.0,0.0003131]
[1767146077835,0.13887,88683.0,88673.0,0.0001131]
[1767146078249,0.1389765,88683.0,88673.0,0.0001131]
[1767146078450,0.13887,88682.0,88673.0,0.0001131]
[1767146080858,0.0001065,88683.0,88673.0,0.0001131]
[1767146081776,0.0001065,88683.0,88673.0,0.01139048]
[1767146081980,0.0114265,88683.0,88676.0,0.147387]
[1767146082145,0.13887,88694.0,88679.0,0.13611]
[1767146082344,0.01132,88693.0,88681.0,0.13611]
[1767146083610,0.01132,88693.0,88681.0,0.14738637]
[1767146084746,0.01132,88693.0,88681.0,0.13611]
[1767146085125,0.01132,88693.0,88680.0,0.41277663]
[1767146085876,0.01132,88693.0,88677.0,0.01127688]
[1767146086078,0.02259484,88693.0,88680.0,0.41277663]
[1767146087078,0.01127497,88692.0,88680.0,0.41277663]
[1767146087478,0.01127548,88688.0,88680.0,0.41222763]
[1767146087708,0.01127535,88689.0,88675.0,0.01132]
[1767146088104,0.57185185,88690.0,88675.0,0.01132]
[1767146088634,0.01127535,88689.0,88675.0,0.01132]
[1767146090317,0.0112756,88687.0,88675.0,0.01132]
[1767146091163,0.15907548,88688.0,88675.0,0.01132]
[1767146092146,0.1478,88688.0,88675.0,0.01132]
[1767146094731,0.41277663,88690.0,88676.0,0.14538]
[1767146094905,0.01127497,88692.0,88676.0,0.14538]
[1767146095114,0.0112751,88691.0,88676.0,0.14538]
[1767146095254,0.01127522,88690.0,88676.0,0.14538]
[1767146095855,0.0112751,88691.0,88676.0,0.14538]
[1767146096323,0.01127497,88692.0,88676.0,0.156657]
[1767146096459,0.01127497,88692.0,88676.0,0.14538]
[1767146096692,0.0112751,88691.0,88676.0,0.14538]
[1767146096894,0.0112751,88691.0,88680.0,0.41277663]
[1767146097342,0.01127497,88692.0,88680.0,0.41277663]
[1767146097524,0.0112751,88691.0,88680.0,0.41277663]
[1767146098370,0.01127522,88690.0,88680.0,0.41277663]
[1767146098569,0.06765212,88689.0,88676.0,0.14538]
[1767146098797,0.01127535,88689.0,88676.0,0.14538]
[1767146099117,0.06765216,88689.0,88676.0,0.14538]
[1767146100177,0.01127535,88689.0,88676.0,0.14538]
[1767146100352,0.01127522,88690.0,88676.0,0.14538]
[1767146101465,0.01127535,88689.0,88676.0,0.14538]
[1767146103263,0.01127522,88690.0,88676.0,0.14538]
[1767146103706,0.06769482,88693.0,88676.0,0.14538]
[1767146103863,0.01127497,88692.0,88680.0,0.41277663]
[1767146104264,0.0112751,88691.0,88680.0,0.41277663]
[1767146104694,0.01132,88693.0,88680.0,0.41277663]
[1767146104953,0.0112751,88691.0,88680.0,0.41277663]
[1767146105164,0.01127522,88690.0,88680.0,0.41277663]
[1767146105308,0.01127535,88689.0,88680.0,0.41277663]
[1767146105542,0.01127522,88690.0,88680.0,0.41277663]
[1767146105746,0.01127535,88689.0,88680.0,0.41277663]
[1767146106115,0.01127522,88690.0,88680.0,0.41277663]
[1767146108518,0.0112751,88691.0,88680.0,0.41277663]
[1767146112264,0.01127522,88690.0,88680.0,0.41277663]
[1767146112797,0.01127497,88692.0,88680.0,0.41277663]
[1767146114131,0.02259484,88693.0,88680.0,0.41277663]
[1767146114570,0.0112751,88691.0,88680.0,0.41277663]
[1767146114963,0.01127522,88690.0,88680.0,0.41277663]
[1767146116997,0.01127522,88690.0,88676.0,0.14538]
[1767146117507,0.01127535,88689.0,88676.0,0.14538]
[1767146117704,0.41277663,88690.0,88675.0,0.01132]
[1767146117921,0.14804624,88682.0,88673.0,7.187e-05]
[1767146118062,0.13677,88682.0,88673.0,7.187e-05]
[1767146118268,0.01127637,88681.0,88673.0,7.187e-05]
[1767146118487,0.14804624,88682.0,88673.0,7.187e-05]
[1767146118667,0.13677,88682.0,88673.0,7.187e-05]
[1767146118870,0.01132,88684.0,88673.0,7.187e-05]
[1767146119606,0.41277663,88683.0,88673.0,7.187e-05]
[1767146119785,0.01127688,88677.0,88673.0,7.187e-05]
[1767146119992,0.13677,88677.0,88673.0,7.187e-05]
[1767146120307,0.01127637,88681.0,88673.0,7.187e-05]
[1767146120682,0.14804624,88682.0,88673.0,7.187e-05]
[1767146120884,0.01127637,88681.0,88673.0,7.187e-05]
[1767146121125,0.01127649,88680.0,88673.0,7.187e-05]
[1767146121685,0.01127662,88679.0,88673.0,7.187e-05]
[1767146121883,0.01127649,88680.0,88673.0,7.187e-05]
[1767146122084,0.01127675,88678.0,88673.0,7.187e-05]
[1767146122286,0.01127649,88680.0,88673.0,7.187e-05]
[1767146122490,0.01127662,88679.0,88673.0,7.187e-05]
[1767146123304,0.01127662,88679.0,88673.0,1.87e-06]
[1767146123305,0.13677,88677.0,88673.0,1.87e-06]
[1767146123507,0.01127675,88678.0,88673.0,1.87e-06]
[1767146123687,0.01127662,88679.0,88673.0,1.87e-06]
[1767146123894,0.06765943,88680.0,88673.0,1.87e-06]
[1767146123895,0.01127649,88680.0,88673.0,1.87e-06]
[1767146124974,0.01127675,88678.0,88673.0,1.87e-06]
[1767146125178,0.01127662,88679.0,88673.0,1.87e-06]
[1767146125361,0.01127675,88678.0,88673.0,1.87e-06]
[1767146126165,0.011277,88676.0,88673.0,1.87e-06]
[1767146126532,0.01127688,88677.0,88673.0,1.87e-06]
[1767146127543,0.01127662,88679.0,88673.0,1.87e-06]
[1767146127737,0.01127675,88678.0,88673.0,1.87e-06]
[1767146128353,0.06766096,88678.0,88673.0,1.87e-06]
[1767146128557,0.01127688,88677.0,88673.0,1.87e-06]
[1767146128814,0.01127662,88679.0,88673.0,1.87e-06]
[1767146129331,0.01127611,88683.0,88679.0,0.000549]
[1767146129655,0.01127624,88682.0,88679.0,0.000549]
[1767146129852,0.01127624,88682.0,88674.0,0.14468]
[1767146130111,0.01127649,88680.0,88674.0,0.14468]
[1767146130285,0.01127637,88681.0,88674.0,0.14468]
[1767146130490,0.01127624,88682.0,88674.0,0.14468]
[1767146133161,0.06765707,88683.0,88674.0,0.14468]
[1767146133291,0.01127624,88682.0,88674.0,0.14468]
[1767146133491,0.01127637,88681.0,88674.0,0.14468]
[1767146134545,0.01127649,88680.0,88674.0,0.14468]
[1767146137057,0.01127649,88680.0,88667.0,0.14468]
[1767146137485,0.01127662,88679.0,88667.0,0.14468]
[1767146137691,0.01127675,88678.0,88667.0,0.14468]
[1767146137896,0.01127662,88679.0,88667.0,0.14468]
[1767146138688,0.01127675,88678.0,88667.0,0.14468]
[1767146138892,0.01127662,88679.0,88667.0,0.14468]
[1767146139714,0.01127675,88678.0,88667.0,0.14468]
[1767146139876,0.01127662,88679.0,88667.0,0.14468]
[1767146142663,0.01127688,88677.0,88667.0,0.14468]
[1767146142864,0.011277,88676.0,88667.0,0.14468]
[1767146143173,0.01127688,88677.0,88667.0,0.14468]
[1767146143526,0.01127662,88679.0,88667.0,0.14468]
[1767146143723,0.01127675,88678.0,88667.0,0.14468]
[1767146143927,0.01127688,88677.0,88667.0,0.14468]
[1767146145019,0.01127675,88678.0,88667.0,0.14468]
[1767146146190,0.06765949,88680.0,88667.0,0.14468]
[1767146146596,0.01127675,88678.0,88667.0,0.14468]
[1767146146917,0.01127688,88677.0,88667.0,0.14468]
[1767146147832,0.011277,88676.0,88667.0,0.14468]
[1767146148269,0.0676614,88677.0,88667.0,0.14468]
[1767146148436,0.01127675,88678.0,88667.0,0.14468]
[1767146148635,0.01127688,88677.0,88667.0,0.14468]
[1767146151762,0.0563856,88676.0,88667.0,0.14468]
[1767146151963,0.01127726,88674.0,88667.0,0.14468]
[1767146152173,0.01127726,88674.0,88666.0,0.00011497]
[1767146152813,0.01127713,88675.0,88666.0,0.00011497]
[1767146153104,0.01127688,88677.0,88666.0,0.00011497]
[1767146153261,0.011277,88676.0,88666.0,0.00011497]
[1767146154720,0.01127713,88675.0,88666.0,0.00011497]
[1767146155008,0.02259688,88677.0,88666.0,0.00011497]
[1767146155230,0.011277,88676.0,88666.0,0.00011497]
[1767146156081,0.01127726,88674.0,88666.0,0.00011497]
[1767146156834,0.01127738,88673.0,88666.0,0.00011497]
[1767146157045,0.01127726,88674.0,88666.0,0.00011497]
[1767146157240,0.01127738,88673.0,88666.0,0.00011497]
[1767146157444,0.01127726,88674.0,88666.0,0.00011497]
[1767146158059,0.01127713,88675.0,88666.0,0.00011497]
[1767146158987,0.06766229,88676.0,88666.0,0.00011497]
[1767146159212,0.01132,88677.0,88666.0,0.00011497]
[1767146159848,0.010771,88677.0,88666.0,0.14097497]
[1767146160191,0.010771,88677.0,88668.0,0.14086]